[Event "Early-Titled-Tuesday-Blitz-May-28-2024"]
[Site "Chess.com"]
[Date "2024.05.28"]
[Round "2"]
[White "jamesaltucher"]
[Black "AsselLesbekova"]
[Result "0-1"]
[WhiteElo "2044"]
[BlackElo "2449"]
[TimeControl "180+1"]
[EndTime "8:14:06 PDT"]
[Termination "AsselLesbekova won by checkmate"]

1. e4 {[%clk 0:03:00.9]} 1... e5 {[%clk 0:02:59.6]} 2. Nc3 {[%clk 0:02:59.6]}
2... Nc6 {[%clk 0:02:59.1]} 3. g3 {[%clk 0:02:59.9]} 3... Nf6 {[%clk 0:02:58.1]}
4. Bg2 {[%clk 0:03:00.3]} 4... d6 {[%clk 0:02:58.5]} 5. Nge2 {[%clk 0:02:59.7]}
5... Be6 {[%clk 0:02:59]} 6. d3 {[%clk 0:02:59.7]} 6... d5 {[%clk 0:02:59.5]} 7.
exd5 {[%clk 0:02:59.3]} 7... Nxd5 {[%clk 0:03:00.4]} 8. O-O {[%clk 0:02:58.8]}
8... Be7 {[%clk 0:03:00.1]} 9. h3 {[%clk 0:02:42.9]} 9... Qd7 {[%clk 0:02:58.1]}
10. Kh2 {[%clk 0:02:42.4]} 10... h5 {[%clk 0:02:53.5]} 11. Nxd5 {[%clk
0:02:22.1]} 11... Bxd5 {[%clk 0:02:54.4]} 12. Nc3 {[%clk 0:02:22]} 12... Bxg2
{[%clk 0:02:53]} 13. Kxg2 {[%clk 0:02:22.2]} 13... h4 {[%clk 0:02:53.2]} 14. Qg4
{[%clk 0:02:17.1]} 14... Qxg4 {[%clk 0:02:42.2]} 15. hxg4 {[%clk 0:02:17.2]}
15... hxg3 {[%clk 0:02:40.5]} 16. Kxg3 {[%clk 0:02:17.3]} 16... Nd4 {[%clk
0:02:40.6]} 17. Nd5 {[%clk 0:02:04.3]} 17... Bd6 {[%clk 0:02:38.7]} 18. Bd2
{[%clk 0:01:54.7]} 18... e4+ {[%clk 0:02:35.8]} 19. Kg2 {[%clk 0:01:40]} 19...
Rh2+ {[%clk 0:02:34]} 20. Kg1 {[%clk 0:01:40]} 20... Nf3# {[%clk 0:02:34.6]} 0-1

[Event "Early-Titled-Tuesday-Blitz-May-28-2024"]
[Site "Chess.com"]
[Date "2024.05.28"]
[Round "2"]
[White "mishanick"]
[Black "xhembulla"]
[Result "1-0"]
[WhiteElo "3054"]
[BlackElo "2636"]
[TimeControl "180+1"]
[EndTime "8:14:20 PDT"]
[Termination "mishanick won by resignation"]

1. d4 {[%clk 0:02:51.7]} 1... Nf6 {[%clk 0:02:59.4]} 2. c4 {[%clk 0:02:51.3]}
2... e6 {[%clk 0:02:59.5]} 3. Nc3 {[%clk 0:02:50.2]} 3... Bb4 {[%clk 0:02:59.4]}
4. e3 {[%clk 0:02:50.8]} 4... O-O {[%clk 0:02:58.8]} 5. Bd3 {[%clk 0:02:51.3]}
5... d5 {[%clk 0:02:58.8]} 6. a3 {[%clk 0:02:51.9]} 6... Bxc3+ {[%clk
0:02:57.6]} 7. bxc3 {[%clk 0:02:52.8]} 7... c5 {[%clk 0:02:58.2]} 8. cxd5 {[%clk
0:02:52.7]} 8... exd5 {[%clk 0:02:57.5]} 9. f3 {[%clk 0:02:52.8]} 9... Nc6
{[%clk 0:02:56.2]} 10. Ne2 {[%clk 0:02:53.2]} 10... Re8 {[%clk 0:02:55.8]} 11.
O-O {[%clk 0:02:53.1]} 11... Qa5 {[%clk 0:02:53]} 12. g4 {[%clk 0:02:51.4]}
12... b6 {[%clk 0:02:44.5]} 13. Bd2 {[%clk 0:02:50.6]} 13... c4 {[%clk
0:02:40.8]} 14. Bc2 {[%clk 0:02:50.9]} 14... b5 {[%clk 0:02:37.6]} 15. Ng3
{[%clk 0:02:50.7]} 15... Qc7 {[%clk 0:02:33.3]} 16. g5 {[%clk 0:02:48.1]} 16...
Nd7 {[%clk 0:02:33.3]} 17. e4 {[%clk 0:02:48.7]} 17... Nb6 {[%clk 0:02:30.9]}
18. e5 {[%clk 0:02:47.3]} 18... a5 {[%clk 0:02:27.4]} 19. f4 {[%clk 0:02:46.3]}
19... b4 {[%clk 0:02:27.6]} 20. axb4 {[%clk 0:02:45.1]} 20... axb4 {[%clk
0:02:27.8]} 21. Rxa8 {[%clk 0:02:45.6]} 21... Nxa8 {[%clk 0:02:28.5]} 22. f5
{[%clk 0:02:43.2]} 22... bxc3 {[%clk 0:02:28.1]} 23. Bxc3 {[%clk 0:02:44.1]}
23... Nb6 {[%clk 0:02:11.8]} 24. Qh5 {[%clk 0:02:37.9]} 24... Qa7 {[%clk
0:01:53.7]} 25. f6 {[%clk 0:02:36.4]} 25... g6 {[%clk 0:01:44]} 26. Qh6 {[%clk
0:02:36.3]} 1-0

[Event "Early-Titled-Tuesday-Blitz-May-28-2024"]
[Site "Chess.com"]
[Date "2024.05.28"]
[Round "2"]
[White "Viacheslav92"]
[Black "xiaopang123"]
[Result "1-0"]
[WhiteElo "2531"]
[BlackElo "2303"]
[TimeControl "180+1"]
[EndTime "8:15:01 PDT"]
[Termination "Viacheslav92 won by resignation"]

1. e4 {[%clk 0:02:58.5]} 1... c6 {[%clk 0:02:58.5]} 2. d4 {[%clk 0:02:49]} 2...
d5 {[%clk 0:02:58.2]} 3. Nc3 {[%clk 0:02:49.9]} 3... dxe4 {[%clk 0:02:57]} 4.
Nxe4 {[%clk 0:02:50.8]} 4... Nf6 {[%clk 0:02:56.7]} 5. Nxf6+ {[%clk 0:02:50.8]}
5... exf6 {[%clk 0:02:56.8]} 6. Nf3 {[%clk 0:02:51.7]} 6... Bd6 {[%clk
0:02:56.9]} 7. Bd3 {[%clk 0:02:51.6]} 7... O-O {[%clk 0:02:57]} 8. O-O {[%clk
0:02:51.3]} 8... Bg4 {[%clk 0:02:57.1]} 9. h3 {[%clk 0:02:51.9]} 9... Bh5 {[%clk
0:02:56.8]} 10. Bf5 {[%clk 0:02:52.5]} 10... Re8 {[%clk 0:02:47.6]} 11. Qd3
{[%clk 0:02:49.5]} 11... Bg6 {[%clk 0:02:45.9]} 12. Nh4 {[%clk 0:02:48.3]} 12...
Nd7 {[%clk 0:02:45.4]} 13. Bd2 {[%clk 0:02:45.8]} 13... Nf8 {[%clk 0:02:40.3]}
14. Rfe1 {[%clk 0:02:44]} 14... Bc7 {[%clk 0:02:36.2]} 15. Rxe8 {[%clk
0:02:38.6]} 15... Qxe8 {[%clk 0:02:35.4]} 16. Re1 {[%clk 0:02:39.2]} 16... Qd8
{[%clk 0:02:35.8]} 17. Nxg6 {[%clk 0:02:35.3]} 17... hxg6 {[%clk 0:02:34.4]} 18.
Bg4 {[%clk 0:02:34.8]} 18... g5 {[%clk 0:02:19.9]} 19. g3 {[%clk 0:02:30.2]}
19... g6 {[%clk 0:02:18.4]} 20. c4 {[%clk 0:02:29.3]} 20... f5 {[%clk
0:02:02.8]} 21. Bf3 {[%clk 0:02:26.1]} 21... Ne6 {[%clk 0:01:56.3]} 22. Bc3
{[%clk 0:02:23.8]} 22... f4 {[%clk 0:01:46.4]} 23. Rxe6 {[%clk 0:02:05.1]} 23...
fxe6 {[%clk 0:01:40.8]} 24. Qxg6+ {[%clk 0:02:05.7]} 24... Kf8 {[%clk
0:01:40.8]} 25. d5 {[%clk 0:02:02]} 1-0

[Event "Early-Titled-Tuesday-Blitz-May-28-2024"]
[Site "Chess.com"]
[Date "2024.05.28"]
[Round "2"]
[White "Chopper1905"]
[Black "AlexPapasimakopoulos"]
[Result "1-0"]
[WhiteElo "2961"]
[BlackElo "2613"]
[TimeControl "180+1"]
[EndTime "8:15:30 PDT"]
[Termination "Chopper1905 won by checkmate"]

1. c4 {[%clk 0:02:55.4]} 1... e6 {[%clk 0:03:00.6]} 2. Nc3 {[%clk 0:02:53.8]}
2... d5 {[%clk 0:03:01.1]} 3. d4 {[%clk 0:02:54]} 3... a6 {[%clk 0:02:59.8]} 4.
cxd5 {[%clk 0:02:53.2]} 4... exd5 {[%clk 0:03:00.7]} 5. Bf4 {[%clk 0:02:53.2]}
5... c6 {[%clk 0:03:01]} 6. e3 {[%clk 0:02:53.3]} 6... Bd6 {[%clk 0:03:01.6]} 7.
Qf3 {[%clk 0:02:45.1]} 7... Qc7 {[%clk 0:02:59.9]} 8. Qg3 {[%clk 0:02:30]} 8...
Bxf4 {[%clk 0:02:38.7]} 9. Qxg7 {[%clk 0:02:28.6]} 9... Bh6 {[%clk 0:02:27.4]}
10. Qxh8 {[%clk 0:02:27]} 10... Kf8 {[%clk 0:02:27]} 11. Qxh7 {[%clk 0:02:19.7]}
11... Nd7 {[%clk 0:02:27.2]} 12. Qc2 {[%clk 0:02:13.9]} 12... Ndf6 {[%clk
0:02:26.1]} 13. Bd3 {[%clk 0:02:14.1]} 13... a5 {[%clk 0:02:23.9]} 14. Nf3
{[%clk 0:02:14.3]} 14... Ne7 {[%clk 0:02:11.9]} 15. O-O {[%clk 0:02:11.3]} 15...
Kg7 {[%clk 0:02:10]} 16. Ne5 {[%clk 0:02:08.7]} 16... Be6 {[%clk 0:02:10.5]} 17.
e4 {[%clk 0:01:43.6]} 17... Rh8 {[%clk 0:02:07.9]} 18. exd5 {[%clk 0:01:41.8]}
18... Nexd5 {[%clk 0:02:08.1]} 19. Nxd5 {[%clk 0:01:41.5]} 19... Bxd5 {[%clk
0:02:09]} 20. Rae1 {[%clk 0:01:34]} 20... Bf4 {[%clk 0:02:08.8]} 21. g3 {[%clk
0:01:23.7]} 21... Bxe5 {[%clk 0:02:02.7]} 22. Rxe5 {[%clk 0:01:22.5]} 22... Kf8
{[%clk 0:02:01.2]} 23. Rfe1 {[%clk 0:01:16.3]} 23... a4 {[%clk 0:01:59.4]} 24.
Qxa4 {[%clk 0:01:09.6]} 24... b5 {[%clk 0:01:57.8]} 25. Qa8+ {[%clk 0:01:08.4]}
25... Kg7 {[%clk 0:01:57.5]} 26. Rg5+ {[%clk 0:01:09.1]} 26... Kh6 {[%clk
0:01:58.2]} 27. Qxh8+ {[%clk 0:01:08.9]} 27... Kxg5 {[%clk 0:01:58.8]} 28. Qh4#
{[%clk 0:01:09.4]} 1-0

[Event "Early-Titled-Tuesday-Blitz-May-28-2024"]
[Site "Chess.com"]
[Date "2024.05.28"]
[Round "2"]
[White "Pragmatist237"]
[Black "LionelMessiFCB"]
[Result "0-1"]
[WhiteElo "2204"]
[BlackElo "2491"]
[TimeControl "180+1"]
[EndTime "8:15:31 PDT"]
[Termination "LionelMessiFCB won by resignation"]

1. c4 {[%clk 0:02:58.7]} 1... g6 {[%clk 0:02:57.2]} 2. Nc3 {[%clk 0:02:58.3]}
2... Bg7 {[%clk 0:02:57.2]} 3. g3 {[%clk 0:02:58.5]} 3... e5 {[%clk 0:02:54.5]}
4. Bg2 {[%clk 0:02:58.6]} 4... Ne7 {[%clk 0:02:55.1]} 5. d3 {[%clk 0:02:58.3]}
5... O-O {[%clk 0:02:55.7]} 6. Nf3 {[%clk 0:02:58.6]} 6... f5 {[%clk 0:02:54]}
7. O-O {[%clk 0:02:58.3]} 7... Nbc6 {[%clk 0:02:53.6]} 8. Rb1 {[%clk 0:02:57.4]}
8... a5 {[%clk 0:02:52.5]} 9. a3 {[%clk 0:02:57.6]} 9... Kh8 {[%clk 0:02:47.3]}
10. b4 {[%clk 0:02:57.5]} 10... axb4 {[%clk 0:02:46.8]} 11. axb4 {[%clk
0:02:57.5]} 11... e4 {[%clk 0:02:47.1]} 12. b5 {[%clk 0:02:43.9]} 12... exf3
{[%clk 0:02:45.2]} 13. Bxf3 {[%clk 0:02:39.4]} 13... Ne5 {[%clk 0:02:39.9]} 14.
Bb2 {[%clk 0:02:33.6]} 14... Nxf3+ {[%clk 0:02:38]} 15. exf3 {[%clk 0:02:34.5]}
15... d5 {[%clk 0:02:33.7]} 16. Nxd5 {[%clk 0:02:32.1]} 16... Nxd5 {[%clk
0:02:30.7]} 17. cxd5 {[%clk 0:02:33]} 17... Qxd5 {[%clk 0:02:29.2]} 18. Bxg7+
{[%clk 0:02:33.9]} 18... Kxg7 {[%clk 0:02:29.7]} 19. Qb3 {[%clk 0:02:34]} 19...
Qxb3 {[%clk 0:02:27]} 20. Rxb3 {[%clk 0:02:34.9]} 20... Be6 {[%clk 0:02:24.1]}
21. Rc3 {[%clk 0:02:34.5]} 21... Rf7 {[%clk 0:02:23.3]} 22. Rfc1 {[%clk
0:02:33.7]} 22... Rc8 {[%clk 0:02:21.5]} 23. d4 {[%clk 0:02:24]} 23... Bd5
{[%clk 0:02:18.9]} 24. Rc5 {[%clk 0:01:58]} 24... Rd7 {[%clk 0:02:16.7]} 25. Kg2
{[%clk 0:01:56.6]} 25... g5 {[%clk 0:02:09.6]} 26. h3 {[%clk 0:01:37.3]} 26...
g4 {[%clk 0:02:08.4]} 27. hxg4 {[%clk 0:01:33.8]} 27... fxg4 {[%clk 0:02:09.3]}
28. Kh2 {[%clk 0:01:26.3]} 28... b6 {[%clk 0:02:05.7]} 29. R5c3 {[%clk
0:01:23.2]} 29... Bxf3 {[%clk 0:02:04.9]} 30. Re3 {[%clk 0:01:19.2]} 0-1

[Event "Early-Titled-Tuesday-Blitz-May-28-2024"]
[Site "Chess.com"]
[Date "2024.05.28"]
[Round "2"]
[White "mindprogress732"]
[Black "Jojo_898"]
[Result "1-0"]
[WhiteElo "2170"]
[BlackElo "2446"]
[TimeControl "180+1"]
[EndTime "8:15:31 PDT"]
[Termination "mindprogress732 won by resignation"]

1. Nf3 {[%clk 0:03:00.9]} 1... Nf6 {[%clk 0:02:58.1]} 2. g3 {[%clk 0:02:58.3]}
2... g6 {[%clk 0:02:55.3]} 3. Bg2 {[%clk 0:02:55.6]} 3... Bg7 {[%clk 0:02:55.2]}
4. O-O {[%clk 0:02:55.1]} 4... O-O {[%clk 0:02:54.9]} 5. d4 {[%clk 0:02:52]}
5... d5 {[%clk 0:02:53.5]} 6. e3 {[%clk 0:02:50]} 6... c5 {[%clk 0:02:52]} 7. c4
{[%clk 0:02:50.8]} 7... cxd4 {[%clk 0:02:45.4]} 8. Nxd4 {[%clk 0:02:51.7]} 8...
Nc6 {[%clk 0:02:40.7]} 9. Nc3 {[%clk 0:02:50.2]} 9... Nxd4 {[%clk 0:02:38.4]}
10. Qxd4 {[%clk 0:02:50.6]} 10... dxc4 {[%clk 0:02:37.3]} 11. Qxc4 {[%clk
0:02:50.6]} 11... Be6 {[%clk 0:02:31.2]} 12. Qb4 {[%clk 0:02:45.2]} 12... Rb8
{[%clk 0:02:26.4]} 13. e4 {[%clk 0:02:45.4]} 13... a5 {[%clk 0:02:13]} 14. Qb5
{[%clk 0:02:42.5]} 14... Qc7 {[%clk 0:02:09]} 15. Bf4 {[%clk 0:02:41.5]} 15...
Bc4 {[%clk 0:01:59.7]} 16. Bxc7 {[%clk 0:02:32.9]} 16... Bxb5 {[%clk 0:01:59.3]}
17. Nxb5 {[%clk 0:02:33.8]} 17... Rbc8 {[%clk 0:01:57.9]} 18. Be5 {[%clk
0:02:34.1]} 18... Rc5 {[%clk 0:01:56.5]} 19. Bxf6 {[%clk 0:02:33.3]} 19... Bxf6
{[%clk 0:01:57.4]} 20. Nc3 {[%clk 0:02:32.3]} 20... b5 {[%clk 0:01:56.6]} 21.
Nd5 {[%clk 0:02:31.5]} 21... Bxb2 {[%clk 0:01:56.5]} 22. Rab1 {[%clk 0:02:31.6]}
22... Bf6 {[%clk 0:01:53.5]} 23. Nxf6+ {[%clk 0:02:31.3]} 23... exf6 {[%clk
0:01:54.4]} 24. Rfc1 {[%clk 0:02:31.2]} 24... Rfc8 {[%clk 0:01:52.5]} 25. Rxc5
{[%clk 0:02:31.1]} 25... Rxc5 {[%clk 0:01:53.4]} 26. a3 {[%clk 0:02:31.5]} 26...
Rc3 {[%clk 0:01:49.3]} 27. Rxb5 {[%clk 0:02:24.4]} 27... Rxa3 {[%clk 0:01:49.3]}
28. Bf1 {[%clk 0:01:55.3]} 28... Ra1 {[%clk 0:01:35.8]} 29. Kg2 {[%clk 0:01:55]}
29... a4 {[%clk 0:01:36]} 30. Bc4 {[%clk 0:01:55.6]} 30... Rc1 {[%clk
0:01:34.5]} 31. Bd5 {[%clk 0:01:55.5]} 31... a3 {[%clk 0:01:33.3]} 32. Ra5
{[%clk 0:01:55.5]} 32... Ra1 {[%clk 0:01:30.8]} 33. Ra7 {[%clk 0:01:54.9]} 33...
a2 {[%clk 0:01:31]} 34. Rxa2 {[%clk 0:01:53.9]} 1-0

[Event "Early-Titled-Tuesday-Blitz-May-28-2024"]
[Site "Chess.com"]
[Date "2024.05.28"]
[Round "2"]
[White "Bob_2004"]
[Black "AnaKuchava"]
[Result "1-0"]
[WhiteElo "2485"]
[BlackElo "2189"]
[TimeControl "180+1"]
[EndTime "8:15:32 PDT"]
[Termination "Bob_2004 won by resignation"]

1. Nf3 {[%clk 0:03:00.9]} 1... d5 {[%clk 0:02:58]} 2. c4 {[%clk 0:03:00.7]} 2...
e6 {[%clk 0:02:57.5]} 3. b3 {[%clk 0:03:00.5]} 3... Nf6 {[%clk 0:02:57]} 4. Bb2
{[%clk 0:03:00.6]} 4... Be7 {[%clk 0:02:57.1]} 5. g3 {[%clk 0:02:58]} 5... O-O
{[%clk 0:02:57.2]} 6. Bg2 {[%clk 0:02:58.2]} 6... c5 {[%clk 0:02:52.3]} 7. O-O
{[%clk 0:02:57.9]} 7... d4 {[%clk 0:02:47.9]} 8. e3 {[%clk 0:02:57.9]} 8... Nc6
{[%clk 0:02:47.2]} 9. exd4 {[%clk 0:02:57.7]} 9... cxd4 {[%clk 0:02:48.1]} 10.
Re1 {[%clk 0:02:58.2]} 10... h6 {[%clk 0:02:42.1]} 11. Ne5 {[%clk 0:02:57.2]}
11... Nxe5 {[%clk 0:02:39.2]} 12. Rxe5 {[%clk 0:02:58.1]} 12... Qb6 {[%clk
0:02:19.9]} 13. Na3 {[%clk 0:02:52.2]} 13... Bd6 {[%clk 0:02:02]} 14. Rb5 {[%clk
0:02:41]} 14... Qc7 {[%clk 0:01:53.2]} 15. c5 {[%clk 0:02:37.4]} 15... Bxc5
{[%clk 0:01:38.1]} 16. Rc1 {[%clk 0:02:37.5]} 16... b6 {[%clk 0:01:26.6]} 17.
Bxa8 {[%clk 0:02:31.7]} 17... Qb8 {[%clk 0:01:21.6]} 18. Bg2 {[%clk 0:02:28.4]}
18... Ba6 {[%clk 0:01:21.6]} 19. Rbxc5 {[%clk 0:02:21.9]} 19... bxc5 {[%clk
0:01:21]} 20. Rxc5 {[%clk 0:02:22.8]} 20... Qb4 {[%clk 0:01:14.4]} 21. Rc6
{[%clk 0:02:17.9]} 21... Bb7 {[%clk 0:01:07.2]} 22. Rc4 {[%clk 0:02:18.1]} 22...
Qb6 {[%clk 0:01:02.3]} 23. Bxd4 {[%clk 0:02:17.6]} 23... Qa6 {[%clk 0:00:59.4]}
24. Bxb7 {[%clk 0:02:16.9]} 24... Qxb7 {[%clk 0:00:59.8]} 25. Bxf6 {[%clk
0:02:17.2]} 25... gxf6 {[%clk 0:00:59]} 26. Qh5 {[%clk 0:02:15.6]} 26... Kg7
{[%clk 0:00:56.4]} 27. Rg4+ {[%clk 0:02:15.4]} 27... Kh7 {[%clk 0:00:55.8]} 28.
Rh4 {[%clk 0:02:15.9]} 1-0

[Event "Early-Titled-Tuesday-Blitz-May-28-2024"]
[Site "Chess.com"]
[Date "2024.05.28"]
[Round "2"]
[White "Javylavilla"]
[Black "twofoxniel"]
[Result "0-1"]
[WhiteElo "2316"]
[BlackElo "2673"]
[TimeControl "180+1"]
[EndTime "8:15:41 PDT"]
[Termination "twofoxniel won by resignation"]

1. e4 {[%clk 0:03:00.9]} 1... d5 {[%clk 0:02:58.1]} 2. exd5 {[%clk 0:02:59.8]}
2... Nf6 {[%clk 0:02:58]} 3. d4 {[%clk 0:02:59.2]} 3... Bg4 {[%clk 0:02:57.5]}
4. Be2 {[%clk 0:02:59]} 4... Bxe2 {[%clk 0:02:57.3]} 5. Nxe2 {[%clk 0:02:59.6]}
5... Qxd5 {[%clk 0:02:57.8]} 6. O-O {[%clk 0:03:00.2]} 6... Nc6 {[%clk
0:02:56.1]} 7. Bf4 {[%clk 0:02:59.2]} 7... O-O-O {[%clk 0:02:55.9]} 8. Nbc3
{[%clk 0:02:56.6]} 8... Qh5 {[%clk 0:02:52.6]} 9. Bg3 {[%clk 0:02:47.6]} 9... e6
{[%clk 0:02:42.5]} 10. a4 {[%clk 0:02:41.9]} 10... Bd6 {[%clk 0:02:31.5]} 11.
Bxd6 {[%clk 0:02:41]} 11... Rxd6 {[%clk 0:02:30.9]} 12. Nb5 {[%clk 0:02:41.2]}
12... Rd7 {[%clk 0:02:31.2]} 13. c3 {[%clk 0:02:40]} 13... a6 {[%clk 0:02:26.9]}
14. Na3 {[%clk 0:02:39.5]} 14... e5 {[%clk 0:02:27.3]} 15. b4 {[%clk 0:02:31.2]}
15... exd4 {[%clk 0:02:25.1]} 16. cxd4 {[%clk 0:02:28.7]} 16... Rhd8 {[%clk
0:02:17.9]} 17. Qc2 {[%clk 0:02:21]} 17... Nxb4 {[%clk 0:02:14.5]} 18. Qc4
{[%clk 0:02:18.3]} 18... Nc6 {[%clk 0:02:04.3]} 19. Rfd1 {[%clk 0:02:12.5]}
19... Qh4 {[%clk 0:01:51.3]} 20. Rab1 {[%clk 0:02:10.7]} 20... Ng4 {[%clk
0:01:50.4]} 21. h3 {[%clk 0:01:57.6]} 21... Qxf2+ {[%clk 0:01:50]} 22. Kh1
{[%clk 0:01:58.2]} 22... Ne3 {[%clk 0:01:50.3]} 0-1

[Event "Early-Titled-Tuesday-Blitz-May-28-2024"]
[Site "Chess.com"]
[Date "2024.05.28"]
[Round "2"]
[White "MiguelBestard1981"]
[Black "Bykov_Egor"]
[Result "0-1"]
[WhiteElo "2271"]
[BlackElo "2666"]
[TimeControl "180+1"]
[EndTime "8:15:42 PDT"]
[Termination "Bykov_Egor won by resignation"]

1. d4 {[%clk 0:03:00.9]} 1... Nf6 {[%clk 0:03:00.5]} 2. Bf4 {[%clk 0:03:00]}
2... d5 {[%clk 0:02:59.7]} 3. e3 {[%clk 0:02:59.8]} 3... c5 {[%clk 0:03:00.3]}
4. c3 {[%clk 0:02:58.9]} 4... Nc6 {[%clk 0:02:59.6]} 5. Nd2 {[%clk 0:02:58.7]}
5... Bf5 {[%clk 0:03:00.2]} 6. Qb3 {[%clk 0:02:57.7]} 6... Qd7 {[%clk
0:03:00.1]} 7. Ngf3 {[%clk 0:02:56.6]} 7... c4 {[%clk 0:02:34.8]} 8. Qd1 {[%clk
0:02:55.3]} 8... e6 {[%clk 0:02:35.5]} 9. Be2 {[%clk 0:02:54.9]} 9... Bd6 {[%clk
0:02:33.9]} 10. O-O {[%clk 0:02:49.9]} 10... O-O {[%clk 0:02:27.8]} 11. b3
{[%clk 0:02:47.7]} 11... b5 {[%clk 0:02:23.5]} 12. a4 {[%clk 0:02:46.7]} 12...
b4 {[%clk 0:02:06.7]} 13. Bxd6 {[%clk 0:02:37.2]} 13... Qxd6 {[%clk 0:02:06.6]}
14. bxc4 {[%clk 0:02:37.4]} 14... bxc3 {[%clk 0:02:03.5]} 15. c5 {[%clk
0:02:37.5]} 15... Qc7 {[%clk 0:02:01.9]} 16. Nb3 {[%clk 0:02:35.6]} 16... Rab8
{[%clk 0:01:56]} 17. Nc1 {[%clk 0:02:32.3]} 17... Nb4 {[%clk 0:01:43]} 18. Nd3
{[%clk 0:02:30.2]} 18... c2 {[%clk 0:01:30]} 19. Qd2 {[%clk 0:02:28.2]} 19...
Ne4 {[%clk 0:01:30.6]} 20. Qc1 {[%clk 0:02:27.5]} 20... Nc3 {[%clk 0:01:26.5]}
21. Nf4 {[%clk 0:02:17.1]} 21... Qxf4 {[%clk 0:01:24.5]} 22. exf4 {[%clk
0:02:15.6]} 22... Nxe2+ {[%clk 0:01:23.6]} 23. Kh1 {[%clk 0:02:15.2]} 23... Nxc1
{[%clk 0:01:24.3]} 24. Rfxc1 {[%clk 0:02:14.1]} 24... Nc6 {[%clk 0:01:13.8]} 25.
Ne1 {[%clk 0:02:09.1]} 25... Rb1 {[%clk 0:01:11.4]} 26. f3 {[%clk 0:02:06.8]}
26... Rxa1 {[%clk 0:01:09]} 27. Rxa1 {[%clk 0:02:05.7]} 27... Rb8 {[%clk
0:01:09.7]} 28. Nxc2 {[%clk 0:02:02.3]} 28... Bxc2 {[%clk 0:01:09.1]} 29. g4
{[%clk 0:01:59.9]} 29... Rb1+ {[%clk 0:01:10]} 30. Rxb1 {[%clk 0:01:57.8]} 30...
Bxb1 {[%clk 0:01:10.9]} 0-1

[Event "Early-Titled-Tuesday-Blitz-May-28-2024"]
[Site "Chess.com"]
[Date "2024.05.28"]
[Round "2"]
[White "Daaksboy"]
[Black "Dewarfd"]
[Result "1-0"]
[WhiteElo "2464"]
[BlackElo "2124"]
[TimeControl "180+1"]
[EndTime "8:15:44 PDT"]
[Termination "Daaksboy won by resignation"]

1. d4 {[%clk 0:03:00.9]} 1... d5 {[%clk 0:02:45.3]} 2. c4 {[%clk 0:03:00.4]}
2... c6 {[%clk 0:02:25.6]} 3. Nc3 {[%clk 0:02:59.9]} 3... Nf6 {[%clk 0:02:25.6]}
4. cxd5 {[%clk 0:02:58.9]} 4... cxd5 {[%clk 0:02:24.9]} 5. Bf4 {[%clk
0:02:59.2]} 5... g6 {[%clk 0:02:24]} 6. e3 {[%clk 0:02:58.6]} 6... Bg7 {[%clk
0:02:24.2]} 7. Nf3 {[%clk 0:02:54.8]} 7... O-O {[%clk 0:02:24.5]} 8. Qb3 {[%clk
0:02:52.1]} 8... e6 {[%clk 0:02:07.5]} 9. Be2 {[%clk 0:02:51.6]} 9... a6 {[%clk
0:02:04.5]} 10. a4 {[%clk 0:02:48.4]} 10... Nc6 {[%clk 0:01:52.2]} 11. O-O
{[%clk 0:02:48.3]} 11... a5 {[%clk 0:01:50]} 12. Nb5 {[%clk 0:02:46.4]} 12...
Nh5 {[%clk 0:01:43.9]} 13. Bd6 {[%clk 0:02:31.3]} 13... Ne7 {[%clk 0:01:24.5]}
14. Ne5 {[%clk 0:02:26.2]} 14... Bd7 {[%clk 0:00:17.7]} 15. Bc7 {[%clk
0:02:22.5]} 15... Qe8 {[%clk 0:00:15.9]} 16. Nd6 {[%clk 0:02:22]} 1-0

[Event "Early-Titled-Tuesday-Blitz-May-28-2024"]
[Site "Chess.com"]
[Date "2024.05.28"]
[Round "2"]
[White "SuperGPatzer"]
[Black "ChessAdvanceUSA"]
[Result "0-1"]
[WhiteElo "2032"]
[BlackElo "2449"]
[TimeControl "180+1"]
[EndTime "8:15:44 PDT"]
[Termination "ChessAdvanceUSA won by resignation"]

1. g4 {[%clk 0:02:46.2]} 1... h5 {[%clk 0:02:57.7]} 2. g5 {[%clk 0:02:45.4]}
2... g6 {[%clk 0:02:54.8]} 3. d4 {[%clk 0:02:45]} 3... Bg7 {[%clk 0:02:54.3]} 4.
Nc3 {[%clk 0:02:44.9]} 4... d6 {[%clk 0:02:54.5]} 5. Bg2 {[%clk 0:02:44.2]} 5...
Nc6 {[%clk 0:02:54.7]} 6. d5 {[%clk 0:02:42.9]} 6... Nb8 {[%clk 0:02:54.3]} 7.
Be3 {[%clk 0:02:39.7]} 7... e5 {[%clk 0:02:54.3]} 8. dxe6 {[%clk 0:02:34.9]}
8... fxe6 {[%clk 0:02:53.3]} 9. Qd3 {[%clk 0:02:26.9]} 9... Ne7 {[%clk
0:02:48.3]} 10. Bxb7 {[%clk 0:02:21.3]} 10... Bxb7 {[%clk 0:02:44.7]} 11. Nf3
{[%clk 0:02:17.4]} 11... Bxf3 {[%clk 0:02:42.1]} 12. exf3 {[%clk 0:02:17]} 12...
Nd7 {[%clk 0:02:41.7]} 13. Ne4 {[%clk 0:02:07.2]} 13... O-O {[%clk 0:02:37.5]}
14. Rg1 {[%clk 0:02:04.6]} 14... Ne5 {[%clk 0:02:36.7]} 15. Qb3 {[%clk
0:02:02.6]} 15... Nxf3+ {[%clk 0:02:36]} 16. Kf1 {[%clk 0:01:55.3]} 16... Nxg1
{[%clk 0:02:18.1]} 17. Qxe6+ {[%clk 0:01:54.4]} 17... Kh7 {[%clk 0:02:17.4]} 18.
Nf6+ {[%clk 0:01:44.9]} 18... Bxf6 {[%clk 0:02:16.1]} 19. gxf6 {[%clk
0:01:44.9]} 19... Nf5 {[%clk 0:02:16.1]} 20. Bg5 {[%clk 0:01:29]} 20... Nf3
{[%clk 0:02:12.5]} 21. h4 {[%clk 0:01:27.9]} 21... Nxg5 {[%clk 0:02:09.8]} 22.
hxg5 {[%clk 0:01:27.5]} 22... Qe8 {[%clk 0:02:10]} 23. Qc4 {[%clk 0:01:20.4]}
23... Qf7 {[%clk 0:02:09.6]} 24. Qc6 {[%clk 0:01:13.8]} 24... Rae8 {[%clk
0:02:09.1]} 25. Re1 {[%clk 0:01:11.3]} 25... Rxe1+ {[%clk 0:02:08.5]} 26. Kxe1
{[%clk 0:01:11]} 26... Qe8+ {[%clk 0:02:09.4]} 27. Qxe8 {[%clk 0:01:09.9]} 27...
Rxe8+ {[%clk 0:02:10.3]} 28. Kd2 {[%clk 0:01:09.4]} 28... Kg8 {[%clk 0:02:10.5]}
29. c4 {[%clk 0:01:05.8]} 29... Kf7 {[%clk 0:02:11.4]} 0-1

[Event "Early-Titled-Tuesday-Blitz-May-28-2024"]
[Site "Chess.com"]
[Date "2024.05.28"]
[Round "2"]
[White "JeFumeDesClopes"]
[Black "ThetNaung291"]
[Result "1-0"]
[WhiteElo "2695"]
[BlackElo "2358"]
[TimeControl "180+1"]
[EndTime "8:15:48 PDT"]
[Termination "JeFumeDesClopes won on time"]

1. Nf3 {[%clk 0:03:00.9]} 1... d5 {[%clk 0:02:59.3]} 2. g3 {[%clk 0:03:00.3]}
2... Nf6 {[%clk 0:02:58.6]} 3. Bg2 {[%clk 0:03:00.5]} 3... Nbd7 {[%clk
0:02:57.5]} 4. O-O {[%clk 0:02:58.6]} 4... e5 {[%clk 0:02:57]} 5. d3 {[%clk
0:02:59.2]} 5... Bd6 {[%clk 0:02:47.7]} 6. c4 {[%clk 0:02:59.1]} 6... c6 {[%clk
0:02:23.1]} 7. e4 {[%clk 0:02:47.5]} 7... dxe4 {[%clk 0:02:19.9]} 8. dxe4 {[%clk
0:02:48.4]} 8... Qe7 {[%clk 0:02:17.9]} 9. Nc3 {[%clk 0:02:39.8]} 9... a5 {[%clk
0:02:16.1]} 10. Nh4 {[%clk 0:02:34.6]} 10... Nc5 {[%clk 0:02:15.2]} 11. h3
{[%clk 0:02:17.4]} 11... O-O {[%clk 0:02:12.5]} 12. Qf3 {[%clk 0:02:17.9]} 1-0